{"text_format":"3","workbook":"xlsx","n_sheets":1,"sheets":["PRICING SCHEDULE"],"not_rendered":{"images":1,"defined_names":2},"read":"whole","date_system":"1900"}

{"sheet":"PRICING SCHEDULE","index":0,"n_rows":29,"n_cols":15,"rows_kept":29,"merged":[[11,2,11,3],[12,2,12,3],[12,5,14,5],[13,2,13,3],[14,2,14,3],[16,4,16,6],[16,7,16,9],[16,10,16,12],[25,1,28,1],[25,2,25,3],[25,4,25,5],[26,2,26,3],[27,2,27,3],[27,4,27,5],[28,2,28,3],[28,4,28,5]]}
[null,"SUPPLY CHAIN MANAGEMENT"]
[null,"Pricing schedule"]
["RFB No",{"v":27402023,"d":"27,402,023"}]
["RFB Title","SAS BASE Software Support and Maintenance for the Numerus Data Centre for a period of Three Years"]
["Bidder Name "]
[]
["1. INSTRUCTION FOR COMPLETING THE PRICING SCHEDULE"]
["(a)  Bidder must complete/enter YELLOW cells only"]
["(b)  Unit and Line prices must be VAT EXCLUSIVE and in South African Rand (ZAR) currency."]
["(c) The price must include all cost to deliver the goods or render the service, including all applicable taxes, duty fees, logistics/delivery, storage, labour, overtime and subsistance and travel"]
["(d)  Prices that are dependent on Rate of Exchange (ROE) must use ROE indicated below, then enter in Column \"Forex %\" the percentage of the price that is ROE dependent (0% means the price is not ROE dependent)"]
[null,"Foreign currency","South African Rand (ZAR) exchange rate "]
[null,"1 US Dollar",{"v":18.28,"d":"R18.28"},null,null,"Mark with an X, which ROE is applicable"]
[null,"1 Euro",{"v":19.79,"d":"R19.79"}]
[null,"1 Pound (UK)",{"v":22.51,"d":"R22.51"}]
[]
[{"$nulls":4},"YEAR 1",null,null,"YEAR 2",null,null,"YEAR 3",null,null,"TOTAL"]
["Item No","Goods/Service description( note year 3 is for 3 months)","Unit of measure","Forex %","Qty ","Unit Price \n(Excl VAT)","Line Price Y1","Qty ","Unit Price \n(Excl VAT)","Line Price Y2","Qty ","Unit Price \n(Excl VAT)","Line Price Y1","Line Price Term \n(Excl VAT)","Price clarification comment"]
[1,"SAS BASE Software Support and Maintenance for the Numerus Data Centre for a period of Three Years",{"$nulls":4},{"$f":"SUBTOTAL(9,G20:G20)","v":0},null,null,{"$f":"SUBTOTAL(9,J20:J20)","v":0},null,null,{"$f":"SUBTOTAL(9,M20:M20)","v":0},{"$f":"SUBTOTAL(9,N20:N20)","v":0}]
["1.1","SAS BASE Software Support and Maintenance for the Numerus Data Centre - capacity 192 MSU's","sum",{"v":0,"d":"0%"},1,0,{"$f":"E20*F20","v":0},1,0,{"$f":"H20*I20","v":0},1,0,{"$f":"K20*L20","v":0},{"$f":"SUM(G20)","v":0}]
[null,"TOTAL BID PRICE  (EXCL VAT)",{"$nulls":4},{"$f":"SUBTOTAL(9,G20:G20)","v":0},null,null,{"$f":"SUBTOTAL(9,J20:J20)","v":0},null,null,{"$f":"SUBTOTAL(9,M20:M20)","v":0},{"$f":"SUBTOTAL(9,N20:N20)","v":0}]
[null,"VAT (@15%)",{"$nulls":4},{"$f":"G21*0.15","v":0},null,null,{"$f":"J21*0.15","v":0},null,null,{"$f":"M21*0.15","v":0},{"$f":"N21*0.15","v":0}]
[null,"TOTAL  BID PRICE (INCL VAT)",{"$nulls":4},{"$f":"G21+G22","v":0},null,null,{"$f":"J21+J22","v":0},null,null,{"$f":"M21+M22","v":0},{"$f":"N21+N22","v":0}]
[]
[]
[null,"I, the bidder, confirm that the price(s) and rate(s) quoted cover all the goods and/or works specified in the bidding documents; that the price(s) or rate(s) cover all my obligations and I accept that any mistakes regarding price(s), rate(s) or calculations will be at my own risk.\n[Note: First convert to PDF, then add signature]"]
[null,null,"Name",null,"Capacity"]
[]
[null,null,"Signature (above)",null,"Date"]